[Event "12th National Amateur Chess-ch 2025"]
[Site "Bihar"]
[Date "2025.03.29"]
[Round "9.1"]
[White "Anadkat Kartavya"]
[Black "Utkrisht Tuli"]
[Result "1/2-1/2"]
[Annotator "NA RC"]
[ECO "C54"]
[WhiteElo "2175"]
[BlackElo "2020"]
[PlyCount "61"]
[EventDate "2025.03.25"]
[EventCountry "IND"]
[SourceTitle "playchess.com"]
[Source "ChessBase"]
[SourceQuality "1"]
[TimeControl "5400+30"]

1. e4 {[%emt 0:00:02]} e5 {[%emt 0:00:20]} 2. Nf3 {[%emt 0:00:05]} Nc6 {[%emt 0:00:05]} 3. Bc4 {[%emt 0:00:04]} Bc5 {[%emt 0:00:05]} 4. c3 {[%emt 0:00:16]} Nf6 {[%emt 0:00:05]} 5. d4 {[%emt 0:02:20]} exd4 {[%emt 0:00:06]} 6. e5 {[%emt 0:00:36]} d5 {[%emt 0:00:08]} 7. Bb5 {[%emt 0:00:03]} Ne4 {[%emt 0:00:08]} 8. cxd4 {[%emt 0:00:04]} Bb4+ {[%emt 0:00:19]} 9. Bd2 {[%emt 0:00:24]} Be7 {[%emt 0:00:09]} 10. Be3 {[%emt 0:04:07]} O-O {[%emt 0:01:47]} 11. Nc3 {[%emt 0:00:25]} f5 {[%emt 0:03:52]} 12. exf6 {[%emt 0:04:48]} Bxf6 {[%emt 0:04:33]} 13. Qb3 {[%emt 0:06:29]} Nxc3 {[%emt 0:01:46]} 14. Bxc6 {[%emt 0:01:55]} bxc6 {[%emt 0:02:12]} 15. Qxc3 {[%emt 0:00:02]} Qd6 {[%emt 0:11:26]} 16. Rc1 {[%emt 0:07:44]} Ba6 {[%emt 0:12:26]} 17. Qxc6 {[%emt 0:20:43]} Qb4+ {[%emt 0:01:26]} 18. Kd1 {[%emt 0:00:56]} Qa5 {[%emt 0:09:50]} 19. Rc5 {[%emt 0:02:49]} Qxa2 {[%emt 0:02:08]} 20. Qxd5+ {[%emt 0:00:29]} Qxd5 {[%emt 0:00:03]} 21. Rxd5 {[%emt 0:00:02]} Bb7 {[%emt 0:00:21]} 22. Rc5 {[%emt 0:08:24]} Bxf3+ {[%emt 0:00:35]} 23. gxf3 {[%emt 0:00:13]} Bxd4 {[%emt 0:00:13]} 24. Bxd4 {[%emt 0:03:57]} Rad8 {[%emt 0:00:06]} 25. Rxc7 {[%emt 0:01:19]} Rxd4+ {[%emt 0:00:10]} 26. Kc1 {[%emt 0:04:07]} Rxf3 {[%emt 0:01:19]} 27. Kb1 {[%emt 0:00:52]} h6 {[%emt 0:00:07]} 28. Kc1 {[%emt 0:00:08]} Kh7 {[%emt 0:00:02]} 29. Kb1 {[%emt 0:00:05]} Kh8 {[%emt 0:00:06]} 30. Kc1 {[%emt 0:00:03]} Kh7 {[%emt 0:00:05]} 31. Kb1 {[%emt 0:00:33]} 1/2-1/2

[Event "12th National Amateur Chess-ch 2025"]
[Site "Bihar"]
[Date "2025.03.29"]
[Round "9.2"]
[White "Manav Kumar"]
[Black "Ayaan Garg"]
[Result "1/2-1/2"]
[Annotator "NA RC"]
[ECO "B19"]
[WhiteElo "1777"]
[BlackElo "1983"]
[PlyCount "71"]
[EventDate "2025.03.25"]
[EventCountry "IND"]
[SourceTitle "playchess.com"]
[Source "ChessBase"]
[SourceQuality "1"]
[TimeControl "5400+30"]

1. e4 {[%emt 0:00:58]} c6 {[%emt 0:00:31]} 2. d4 {[%emt 0:00:08]} d5 {[%emt 0:00:04]} 3. Nd2 {[%emt 0:00:04]} dxe4 {[%emt 0:00:04]} 4. Nxe4 {[%emt 0:00:03]} Bf5 {[%emt 0:00:10]} 5. Ng3 {[%emt 0:00:02]} Bg6 {[%emt 0:00:05]} 6. Nf3 {[%emt 0:00:03]} Nd7 {[%emt 0:00:03]} 7. h4 {[%emt 0:00:04]} h6 {[%emt 0:00:04]} 8. Bd3 {[%emt 0:00:01]} Bxd3 {[%emt 0:00:10]} 9. Qxd3 {[%emt 0:00:04]} Ngf6 {[%emt 0:00:10]} 10. Bf4 {[%emt 0:00:04]} e6 {[%emt 0:00:09]} 11. O-O-O {[%emt 0:00:17]} Nd5 {[%emt 0:00:20]} 12. Bd2 {[%emt 0:00:07]} Nb4 {[%emt 0:00:05]} 13. Bxb4 {[%emt 0:00:59]} Bxb4 {[%emt 0:00:10]} 14. Ne4 {[%emt 0:00:27]} Qc7 {[%emt 0:11:31]} 15. Ne5 {[%emt 0:07:54]} O-O-O {[%emt 0:01:52]} 16. Qg3 {[%emt 0:01:17]} f5 {[%emt 0:14:29]} 17. Nxd7 {[%emt 0:07:43]} Rxd7 {[%emt 0:04:51]} 18. Qxc7+ {[%emt 0:00:32]} Kxc7 {[%emt 0:00:12]} 19. Nc5 {[%emt 0:00:45]} Bxc5 {[%emt 0:04:19]} 20. dxc5 {[%emt 0:00:02]} Rxd1+ {[%emt 0:16:31]} 21. Rxd1 {[%emt 0:01:12]} Re8 {[%emt 0:02:22]} 22. f4 {[%emt 0:13:42]} e5 {[%emt 0:01:07]} 23. fxe5 {[%emt 0:00:02]} Rxe5 {[%emt 0:00:07]} 24. Rd6 {[%emt 0:00:02]} Rxc5 {[%emt 0:06:49]} 25. Rg6 {[%emt 0:00:03]} Rc4 {[%emt 0:00:08]} 26. Rxg7+ {[%emt 0:00:04]} Kb6 {[%emt 0:00:10]} 27. g3 {[%emt 0:01:44]} Re4 {[%emt 0:05:04]} 28. Kd2 {[%emt 0:01:46]} Re6 {[%emt 0:04:34]} 29. h5 {[%emt 0:00:07]} Re5 {[%emt 0:00:47]} 30. Rf7 {[%emt 0:01:05]} f4 {[%emt 0:01:16]} 31. g4 {[%emt 0:00:03]} Re4 {[%emt 0:00:30]} 32. Kd3 {[%emt 0:02:31]} Re3+ {[%emt 0:01:12]} 33. Kd4 {[%emt 0:01:33]} Re2 {[%emt 0:07:40]} 34. Rxf4 {[%emt 0:00:02]} Rxc2 {[%emt 0:00:02]} 35. b4 Rxa2 {[%emt 0:00:01]} 36. Ke4 {[%emt 0:00:13]} 1/2-1/2

[Event "12th National Amateur Chess-ch 2025"]
[Site "Bihar"]
[Date "2025.03.29"]
[Round "9.3"]
[White "Arhan Jain"]
[Black "Sham R"]
[Result "0-1"]
[Annotator "NA RC"]
[ECO "E11"]
[WhiteElo "1914"]
[BlackElo "2128"]
[PlyCount "118"]
[EventDate "2025.03.25"]
[EventCountry "IND"]
[SourceTitle "playchess.com"]
[Source "ChessBase"]
[SourceQuality "1"]
[TimeControl "5400+30"]

1. d4 {[%emt 0:00:04]} Nf6 {[%emt 0:02:11]} 2. c4 {[%emt 0:00:08]} e6 {[%emt 0:00:03]} 3. g3 {[%emt 0:00:06]} Bb4+ {[%emt 0:00:05]} 4. Bd2 {[%emt 0:00:04]} Qe7 {[%emt 0:00:03]} 5. Bg2 {[%emt 0:00:17]} Nc6 {[%emt 0:01:28]} 6. Nf3 {[%emt 0:00:42]} Bxd2+ {[%emt 0:01:19]} 7. Nbxd2 {[%emt 0:02:45]} d6 {[%emt 0:02:02]} 8. e4 {[%emt 0:02:08]} e5 {[%emt 0:00:12]} 9. d5 {[%emt 0:00:07]} Nb8 {[%emt 0:00:02]} 10. O-O {[%emt 0:00:25]} a5 {[%emt 0:00:15]} 11. b3 {[%emt 0:00:44]} Na6 {[%emt 0:01:06]} 12. a3 {[%emt 0:00:24]} O-O {[%emt 0:00:44]} 13. Qc2 {[%emt 0:02:37]} Bd7 {[%emt 0:02:02]} 14. Ne1 {[%emt 0:01:00]} c6 {[%emt 0:03:02]} 15. dxc6 {[%emt 0:02:50]} Bxc6 {[%emt 0:08:25]} 16. Nd3 {[%emt 0:00:39]} Nc5 {[%emt 0:02:40]} 17. Rfe1 {[%emt 0:06:35]} Ne6 {[%emt 0:02:16]} 18. Qb2 {[%emt 0:02:52]} b5 {[%emt 0:01:10]} 19. Nc1 {[%emt 0:06:30]} Rab8 {[%emt 0:04:21]} 20. b4 {[%emt 0:02:40]} Rfc8 {[%emt 0:06:51]} 21. cxb5 {[%emt 0:12:24]} Bxb5 {[%emt 0:01:02]} 22. Na2 {[%emt 0:11:19]} Bd3 {[%emt 0:13:35]} 23. Rac1 {[%emt 0:07:39]} Rxc1 {[%emt 0:05:12]} 24. Nxc1 {[%emt 0:02:23]} Ba6 {[%emt 0:00:28]} 25. Bf1 {[%emt 0:02:19]} Bxf1 {[%emt 0:00:53]} 26. Kxf1 {[%emt 0:00:31]} Qb7 {[%emt 0:04:19]} 27. f3 {[%emt 0:10:26]} Nd4 {[%emt 0:06:12]} 28. Ne2 {[%emt 0:01:20]} Qb5 {[%emt 0:01:52]} 29. Kf2 {[%emt 0:00:36]} Nxe2 {[%emt 0:05:04]} 30. Rxe2 {[%emt 0:00:04]} axb4 {[%emt 0:00:28]} 31. axb4 {[%emt 0:00:07]} Qxb4 {[%emt 0:02:13]} 32. Qxb4 {[%emt 0:00:04]} Rxb4 {[%emt 0:00:02]} 33. Nf1 {[%emt 0:01:40]} Kf8 {[%emt 0:00:38]} 34. Rd2 {[%emt 0:01:08]} Ke7 {[%emt 0:00:06]} 35. Ne3 {[%emt 0:00:04]} g6 {[%emt 0:00:07]} 36. g4 {[%emt 0:01:45]} h6 {[%emt 0:01:31]} 37. Nd5+ {[%emt 0:05:16]} Nxd5 {[%emt 0:00:03]} 38. Rxd5 {[%emt 0:00:04]} f5 {[%emt 0:01:55]} 39. gxf5 {[%emt 0:01:11]} gxf5 {[%emt 0:00:04]} 40. exf5 {[%emt 0:00:54]} Rf4 {[%emt 0:01:26]} 41. Kg3 {[%emt 0:00:59]} Rxf5 {[%emt 0:00:12]} 42. Ra5 {[%emt 0:00:48]} Ke6 {[%emt 0:01:44]} 43. Rb5 {[%emt 0:01:19]} e4 {[%emt 0:00:38]} 44. Rb3 {[%emt 0:01:20]} Rxf3+ {[%emt 0:01:29]} 45. Rxf3 {[%emt 0:00:03]} exf3 {[%emt 0:00:01]} 46. Kxf3 {[%emt 0:00:05]} Kf5 {[%emt 0:00:23]} 47. h3 {[%emt 0:00:16]} h5 {[%emt 0:02:33]} 48. Kg3 {[%emt 0:00:45]} Ke4 {[%emt 0:00:34]} 49. Kh4 {[%emt 0:00:15]} d5 {[%emt 0:00:02]} 50. Kxh5 {[%emt 0:00:04]} d4 {[%emt 0:00:04]} 51. Kg6 {[%emt 0:00:03]} d3 {[%emt 0:00:03]} 52. h4 {[%emt 0:00:03]} d2 {[%emt 0:00:03]} 53. h5 {[%emt 0:00:04]} d1=Q {[%emt 0:00:07]} 54. h6 {[%emt 0:00:01]} Qg4+ {[%emt 0:00:19]} 55. Kf7 {[%emt 0:00:08]} Qf5+ {[%emt 0:00:11]} 56. Kg7 {[%emt 0:00:03]} Qg5+ {[%emt 0:00:02]} 57. Kh7 {[%emt 0:00:05]} Kf5 {[%emt 0:00:11]} 58. Kh8 {[%emt 0:00:04]} Kf6 {[%emt 0:00:18]} 59. h7 {[%emt 0:00:04]} Qg7# {[%emt 0:00:02]} 0-1

[Event "12th National Amateur Chess-ch 2025"]
[Site "Bihar"]
[Date "2025.03.29"]
[Round "9.4"]
[White "Vidit Sethi"]
[Black "Daksh Goyal"]
[Result "0-1"]
[Annotator "NA RC"]
[ECO "E11"]
[WhiteElo "1832"]
[BlackElo "2079"]
[PlyCount "114"]
[EventDate "2025.03.25"]
[EventCountry "IND"]
[SourceTitle "playchess.com"]
[Source "ChessBase"]
[SourceQuality "1"]
[TimeControl "5400+30"]

1. d4 {[%emt 0:00:03]} Nf6 {[%emt 0:00:09]} 2. c4 {[%emt 0:00:06]} e6 {[%emt 0:00:02]} 3. Nf3 {[%emt 0:00:06]} Bb4+ {[%emt 0:00:02]} 4. Nbd2 {[%emt 0:00:37]} Be7 {[%emt 0:00:20]} 5. g3 {[%emt 0:00:16]} d5 {[%emt 0:00:13]} 6. Bg2 {[%emt 0:00:09]} O-O {[%emt 0:00:07]} 7. O-O {[%emt 0:00:04]} b6 {[%emt 0:00:31]} 8. cxd5 {[%emt 0:00:41]} exd5 {[%emt 0:00:07]} 9. Nb1 {[%emt 0:00:09]} c6 {[%emt 0:03:24]} 10. Nc3 {[%emt 0:00:05]} Nbd7 {[%emt 0:01:30]} 11. Qd3 {[%emt 0:03:41]} a5 {[%emt 0:00:54]} 12. Bf4 {[%emt 0:03:11]} Ba6 {[%emt 0:00:42]} 13. Qc2 {[%emt 0:00:12]} Re8 {[%emt 0:01:00]} 14. Rfe1 {[%emt 0:00:10]} Rc8 {[%emt 0:02:51]} 15. Rad1 {[%emt 0:01:09]} b5 {[%emt 0:03:17]} 16. Ne5 {[%emt 0:09:10]} Nxe5 {[%emt 0:05:33]} 17. Bxe5 {[%emt 0:01:26]} Bd6 {[%emt 0:04:40]} 18. Bxd6 {[%emt 0:03:22]} Qxd6 {[%emt 0:00:05]} 19. e4 {[%emt 0:02:08]} dxe4 {[%emt 0:00:54]} 20. Nxe4 {[%emt 0:00:11]} Nxe4 {[%emt 0:00:25]} 21. Bxe4 {[%emt 0:06:51]} g6 {[%emt 0:00:20]} 22. Qd3 {[%emt 0:05:21]} Kg7 {[%emt 0:08:21]} 23. Rc1 {[%emt 0:03:21]} c5 {[%emt 0:04:04]} 24. dxc5 {[%emt 0:03:36]} Qxd3 {[%emt 0:00:08]} 25. Bxd3 {[%emt 0:00:14]} Rxc5 {[%emt 0:08:27]} 26. Kf1 {[%emt 0:02:38]} Rxe1+ {[%emt 0:02:23]} 27. Rxe1 {[%emt 0:00:10]} Bc8 {[%emt 0:00:26]} 28. Ke2 {[%emt 0:00:58]} b4 {[%emt 0:01:47]} 29. Kd2 {[%emt 0:02:03]} Rd5 {[%emt 0:02:22]} 30. a3 {[%emt 0:01:40]} bxa3 {[%emt 0:01:52]} 31. bxa3 {[%emt 0:00:50]} g5 {[%emt 0:01:11]} 32. Kc3 {[%emt 0:00:32]} Be6 {[%emt 0:01:27]} 33. Re2 {[%emt 0:08:36]} g4 {[%emt 0:07:25]} 34. Bc4 {[%emt 0:04:48]} Rc5 {[%emt 0:12:30]} 35. Re4 {[%emt 0:00:05]} h5 {[%emt 0:01:08]} 36. Kb3 {[%emt 0:12:36]} Kf6 {[%emt 0:12:14]} 37. Bxe6 {[%emt 0:03:54]} fxe6 {[%emt 0:00:03]} 38. Rf4+ {[%emt 0:04:40]} Kg5 {[%emt 0:10:41]} 39. Rf8 {[%emt 0:02:23]} Rd5 {[%emt 0:00:47]} 40. Rg8+ {[%emt 0:02:16]} Kf5 {[%emt 0:01:11]} 41. Kc2 {[%emt 0:02:45]} Ke4 {[%emt 0:00:41]} 42. Rg6 {[%emt 0:01:50]} Kf3 {[%emt 0:03:15]} 43. Rf6+ {[%emt 0:00:24]} Rf5 {[%emt 0:00:36]} 44. Rxe6 {[%emt 0:00:06]} Kg2 {[%emt 0:00:27]} 45. Kd1 {[%emt 0:03:28]} Kxh2 {[%emt 0:00:35]} 46. Ke1 {[%emt 0:04:11]} Kg2 {[%emt 0:00:14]} 47. Re2 {[%emt 0:00:43]} Rf3 {[%emt 0:00:57]} 48. Re5 {[%emt 0:00:37]} Rxa3 {[%emt 0:00:39]} 49. Rxh5 {[%emt 0:00:07]} Ra1+ {[%emt 0:00:30]} 50. Ke2 {[%emt 0:00:25]} Ra2+ {[%emt 0:00:26]} 51. Ke1 {[%emt 0:00:39]} a4 {[%emt 0:01:10]} 52. Ra5 {[%emt 0:00:57]} a3 {[%emt 0:00:21]} 53. Ra4 {[%emt 0:00:15]} Ra1+ {[%emt 0:00:35]} 54. Kd2 {[%emt 0:02:19]} a2 {[%emt 0:00:11]} 55. Rxg4 {[%emt 0:01:20]} Rf1 {[%emt 0:00:32]} 56. Ra4 {[%emt 0:00:10]} a1=Q {[%emt 0:00:05]} 57. Rxa1 {[%emt 0:00:13]} Rxa1 {[%emt 0:00:08]} 0-1

[Event "12th National Amateur Chess-ch 2025"]
[Site "Bihar"]
[Date "2025.03.29"]
[Round "9.5"]
[White "Piyush Kumar"]
[Black "Archisman Patra"]
[Result "1/2-1/2"]
[Annotator "NA RC"]
[ECO "C15"]
[WhiteElo "1836"]
[BlackElo "1791"]
[PlyCount "51"]
[EventDate "2025.03.25"]
[EventCountry "IND"]
[SourceTitle "playchess.com"]
[Source "ChessBase"]
[SourceQuality "1"]
[TimeControl "5400+30"]

1. e4 {[%emt 0:00:18]} e6 {[%emt 0:00:27]} 2. d4 {[%emt 0:00:08]} d5 {[%emt 0:00:07]} 3. Nc3 {[%emt 0:00:04]} Bb4 {[%emt 0:00:09]} 4. Nge2 {[%emt 0:00:08]} dxe4 {[%emt 0:00:25]} 5. a3 {[%emt 0:00:07]} Bxc3+ {[%emt 0:00:04]} 6. Nxc3 {[%emt 0:00:06]} Nc6 {[%emt 0:00:06]} 7. Bb5 {[%emt 0:00:19]} Nge7 {[%emt 0:00:24]} 8. Be3 {[%emt 0:10:27]} O-O {[%emt 0:00:10]} 9. Bc4 {[%emt 0:07:44]} f5 {[%emt 0:01:08]} 10. g3 {[%emt 0:01:18]} Kh8 {[%emt 0:01:46]} 11. Ne2 {[%emt 0:01:31]} e5 {[%emt 0:01:20]} 12. d5 {[%emt 0:02:23]} Na5 {[%emt 0:00:18]} 13. Ba2 {[%emt 0:00:32]} b6 {[%emt 0:00:03]} 14. Qd2 {[%emt 0:06:43]} Nb7 {[%emt 0:00:36]} 15. h4 {[%emt 0:00:12]} Nd6 {[%emt 0:00:46]} 16. Qc3 {[%emt 0:00:35]} Ba6 {[%emt 0:01:30]} 17. Qxe5 {[%emt 0:09:56]} Ng6 {[%emt 0:01:54]} 18. Qd4 {[%emt 0:01:16]} Bxe2 {[%emt 0:00:22]} 19. Kxe2 {[%emt 0:01:16]} Qe8 {[%emt 0:05:48]} 20. Rad1 {[%emt 0:00:16]} Qd8 {[%emt 0:00:08]} 21. Kd2 {[%emt 0:00:06]} Qe8 {[%emt 0:00:21]} 22. Ke2 {[%emt 0:00:03]} Qd8 {[%emt 0:00:07]} 23. Kd2 {[%emt 0:00:04]} Qe8 {[%emt 0:00:05]} 24. Ke2 {[%emt 0:00:04]} Qd8 {[%emt 0:00:05]} 25. Kd2 {[%emt 0:00:05]} Qe8 {[%emt 0:00:08]} 26. Ke1 {[%emt 0:03:15]} 1/2-1/2

[Event "12th National Amateur Chess-ch 2025"]
[Site "Bihar"]
[Date "2025.03.29"]
[Round "9.6"]
[White "Srikanth, K.."]
[Black "Gurung Rohit"]
[Result "0-1"]
[Annotator "NA RC"]
[ECO "B07"]
[WhiteElo "1831"]
[BlackElo "1902"]
[PlyCount "114"]
[EventDate "2025.03.25"]
[EventCountry "IND"]
[SourceTitle "playchess.com"]
[Source "ChessBase"]
[SourceQuality "1"]
[TimeControl "5400+30"]

1. e4 {[%emt 0:00:04]} d6 {[%emt 0:02:04]} 2. Nc3 {[%emt 0:00:14]} g6 {[%emt 0:01:25]} 3. f4 {[%emt 0:00:08]} Bg7 {[%emt 0:00:40]} 4. Nf3 {[%emt 0:00:27]} c6 {[%emt 0:00:53]} 5. Be2 {[%emt 0:02:50]} d5 {[%emt 0:00:36]} 6. e5 {[%emt 0:02:13]} Bg4 {[%emt 0:00:11]} 7. O-O {[%emt 0:00:26]} Bxf3 {[%emt 0:00:14]} 8. Bxf3 {[%emt 0:00:10]} e6 {[%emt 0:00:02]} 9. d4 {[%emt 0:00:46]} h5 {[%emt 0:01:18]} 10. Na4 {[%emt 0:02:58]} Nd7 {[%emt 0:00:28]} 11. b3 {[%emt 0:01:49]} Ne7 {[%emt 0:11:10]} 12. Ba3 {[%emt 0:01:56]} Nf5 {[%emt 0:00:39]} 13. Qd3 {[%emt 0:00:18]} b5 {[%emt 0:02:07]} 14. Nc5 {[%emt 0:00:41]} Nxc5 {[%emt 0:01:29]} 15. Bxc5 {[%emt 0:00:05]} Bf8 {[%emt 0:00:34]} 16. Bxf8 {[%emt 0:03:11]} Kxf8 {[%emt 0:01:39]} 17. a4 {[%emt 0:00:05]} Qb6 {[%emt 0:03:26]} 18. Rfd1 {[%emt 0:00:25]} a5 {[%emt 0:13:01]} 19. Kh1 {[%emt 0:09:28]} Kg7 {[%emt 0:00:51]} 20. c3 {[%emt 0:02:33]} bxa4 {[%emt 0:04:35]} 21. bxa4 {[%emt 0:00:09]} Rab8 {[%emt 0:01:41]} 22. Rdb1 {[%emt 0:00:53]} Qa7 {[%emt 0:00:19]} 23. g4 {[%emt 0:06:58]} hxg4 {[%emt 0:02:23]} 24. Bxg4 {[%emt 0:00:05]} Nh6 {[%emt 0:03:16]} 25. Bh3 {[%emt 0:01:45]} Rxb1+ {[%emt 0:00:18]} 26. Rxb1 {[%emt 0:00:17]} Rb8 {[%emt 0:02:38]} 27. Rg1 {[%emt 0:01:24]} Qe7 {[%emt 0:00:00]} 28. Rb1 {[%emt 0:02:36]} Rxb1+ {[%emt 0:00:41]} 29. Qxb1 {[%emt 0:00:12]} Qa3 {[%emt 0:00:17]} 30. Qc2 {[%emt 0:01:28]} Qa1+ {[%emt 0:02:09]} 31. Kg2 {[%emt 0:00:06]} Qe1 {[%emt 0:02:29]} 32. Kf3 {[%emt 0:00:45]} Qh1+ {[%emt 0:00:36]} 33. Kg3 {[%emt 0:00:59]} Qg1+ {[%emt 0:01:17]} 34. Kf3 {[%emt 0:03:33]} Qe1 {[%emt 0:00:34]} 35. c4 {[%emt 0:15:58]} Qh4 {[%emt 0:01:45]} 36. Kg2 {[%emt 0:06:55]} Qxf4 {[%emt 0:00:57]} 37. cxd5 {[%emt 0:00:41]} cxd5 {[%emt 0:00:02]} 38. Qc7 {[%emt 0:11:10]} Qe4+ {[%emt 0:03:57]} 39. Kg3 {[%emt 0:00:26]} Qe3+ {[%emt 0:01:14]} 40. Kg2 {[%emt 0:00:18]} Qe2+ {[%emt 0:01:15]} 41. Kg3 {[%emt 0:00:12]} Qd3+ {[%emt 0:01:07]} 42. Kg2 {[%emt 0:00:13]} Qxd4 {[%emt 0:00:59]} 43. Bxe6 {[%emt 0:00:15]} Qd2+ {[%emt 0:01:10]} 44. Kg3 {[%emt 0:00:18]} d4 {[%emt 0:00:26]} 45. Bc4 {[%emt 0:03:17]} Nf5+ {[%emt 0:00:54]} 46. Kf3 {[%emt 0:02:27]} Qe3+ {[%emt 0:01:42]} 47. Kg2 {[%emt 0:00:03]} Nh4+ {[%emt 0:03:06]} 48. Kf1 {[%emt 0:00:13]} Qf3+ {[%emt 0:04:45]} 49. Ke1 {[%emt 0:00:24]} Ng2+ {[%emt 0:00:15]} 50. Kd2 {[%emt 0:00:10]} Qc3+ {[%emt 0:00:14]} 51. Ke2 {[%emt 0:00:58]} Qc2+ {[%emt 0:01:27]} 52. Kf3 {[%emt 0:00:21]} Ne1+ {[%emt 0:00:39]} 53. Kg3 {[%emt 0:01:00]} Qg2+ {[%emt 0:00:32]} 54. Kf4 {[%emt 0:00:03]} Qf3+ {[%emt 0:00:28]} 55. Kg5 {[%emt 0:00:25]} Qf5+ {[%emt 0:00:12]} 56. Kh4 {[%emt 0:00:06]} Qf4+ {[%emt 0:00:38]} 57. Kh3 {[%emt 0:00:06]} Qf3+ {[%emt 0:00:07]} 0-1

[Event "12th National Amateur Chess-ch 2025"]
[Site "Bihar"]
[Date "2025.03.29"]
[Round "9.7"]
[White "Aman Balana"]
[Black "Pradeep Tiwari"]
[Result "1/2-1/2"]
[Annotator "NA RC"]
[ECO "C55"]
[WhiteElo "1827"]
[BlackElo "1979"]
[PlyCount "194"]
[EventDate "2025.03.25"]
[EventCountry "IND"]
[SourceTitle "playchess.com"]
[Source "ChessBase"]
[SourceQuality "1"]
[TimeControl "5400+30"]

1. e4 {[%emt 0:00:03]} e5 {[%emt 0:00:09]} 2. Nf3 {[%emt 0:00:05]} Nc6 {[%emt 0:00:04]} 3. Bc4 {[%emt 0:00:03]} Be7 {[%emt 0:00:10]} 4. O-O {[%emt 0:00:19]} Nf6 {[%emt 0:00:08]} 5. d3 {[%emt 0:00:18]} d6 {[%emt 0:00:06]} 6. c3 {[%emt 0:00:11]} O-O {[%emt 0:00:06]} 7. Re1 {[%emt 0:00:44]} a6 {[%emt 0:00:07]} 8. a4 {[%emt 0:02:18]} h6 {[%emt 0:03:37]} 9. Nbd2 {[%emt 0:00:21]} Be6 {[%emt 0:00:16]} 10. h3 {[%emt 0:02:48]} Qd7 {[%emt 0:01:40]} 11. Bxe6 {[%emt 0:02:39]} fxe6 {[%emt 0:00:20]} 12. Nf1 {[%emt 0:01:51]} Kh7 {[%emt 0:02:59]} 13. Ng3 {[%emt 0:01:21]} Ng8 {[%emt 0:01:19]} 14. d4 {[%emt 0:03:46]} Bf6 {[%emt 0:01:25]} 15. Be3 {[%emt 0:04:06]} Qf7 {[%emt 0:00:56]} 16. Qb3 {[%emt 0:03:43]} b6 {[%emt 0:07:36]} 17. Qc4 {[%emt 0:03:41]} Na5 {[%emt 0:01:44]} 18. Qd3 {[%emt 0:01:04]} c5 {[%emt 0:03:31]} 19. dxe5 {[%emt 0:17:03]} dxe5 {[%emt 0:01:34]} 20. Rad1 {[%emt 0:00:49]} Rfd8 {[%emt 0:00:45]} 21. Qe2 {[%emt 0:01:07]} Rxd1 {[%emt 0:04:14]} 22. Rxd1 {[%emt 0:00:12]} Qc7 {[%emt 0:01:05]} 23. Nh5 {[%emt 0:04:14]} c4 {[%emt 0:01:47]} 24. Qd2 {[%emt 0:03:39]} b5 {[%emt 0:06:26]} 25. axb5 {[%emt 0:05:54]} axb5 {[%emt 0:00:13]} 26. Qd6 {[%emt 0:00:13]} Qxd6 {[%emt 0:04:49]} 27. Rxd6 {[%emt 0:00:04]} Kg6 {[%emt 0:05:20]} 28. g4 {[%emt 0:03:36]} Kf7 {[%emt 0:01:39]} 29. Rb6 {[%emt 0:10:09]} Ne7 {[%emt 0:01:58]} 30. h4 {[%emt 0:05:51]} Nc8 {[%emt 0:01:51]} 31. Rxb5 {[%emt 0:01:44]} Nd6 {[%emt 0:00:10]} 32. Rb6 {[%emt 0:09:36]} Nxe4 {[%emt 0:15:04]} 33. Nxf6 {[%emt 0:07:16]} Kxf6 {[%emt 0:03:18]} 34. g5+ {[%emt 0:00:17]} hxg5 {[%emt 0:00:08]} 35. hxg5+ {[%emt 0:00:02]} Kf5 {[%emt 0:03:23]} 36. Kg2 {[%emt 0:01:44]} Kg6 {[%emt 0:03:50]} 37. Rxe6+ {[%emt 0:00:36]} Kf7 {[%emt 0:00:03]} 38. Rxe5 {[%emt 0:00:17]} Nd6 {[%emt 0:00:07]} 39. Rd5 {[%emt 0:03:29]} Ke6 {[%emt 0:00:08]} 40. Re5+ {[%emt 0:00:02]} Kd7 {[%emt 0:00:22]} 41. Bf4 {[%emt 0:00:50]} Nab7 {[%emt 0:00:35]} 42. g6 {[%emt 0:01:39]} Rf8 {[%emt 0:00:17]} 43. Bg5 {[%emt 0:00:33]} Nf5 {[%emt 0:00:21]} 44. Nd4 {[%emt 0:00:52]} Nbd6 {[%emt 0:00:21]} 45. Nxf5 {[%emt 0:00:38]} Nxf5 {[%emt 0:00:04]} 46. Rc5 {[%emt 0:00:13]} Nd6 {[%emt 0:00:06]} 47. Ra5 {[%emt 0:00:41]} Ke6 {[%emt 0:00:13]} 48. Ra7 {[%emt 0:00:36]} Rg8 {[%emt 0:00:37]} 49. Ra6 {[%emt 0:01:04]} Kd5 {[%emt 0:00:16]} 50. Ra5+ {[%emt 0:00:25]} Ke6 {[%emt 0:00:12]} 51. Ra6 {[%emt 0:00:01]} Kd5 {[%emt 0:00:05]} 52. Be3 {[%emt 0:00:15]} Nf5 {[%emt 0:00:14]} 53. Ra5+ {[%emt 0:00:16]} Ke6 {[%emt 0:00:08]} 54. Bf4 {[%emt 0:00:34]} Nh4+ {[%emt 0:00:12]} 55. Kg3 {[%emt 0:01:29]} Nxg6 {[%emt 0:00:05]} 56. Ra6+ {[%emt 0:00:31]} Kf5 {[%emt 0:00:09]} 57. f3 {[%emt 0:00:36]} Nxf4 {[%emt 0:00:11]} 58. Ra5+ {[%emt 0:00:01]} Kf6 {[%emt 0:00:09]} 59. Kxf4 {[%emt 0:00:04]} Rb8 {[%emt 0:00:03]} 60. Ra6+ {[%emt 0:00:11]} Kf7 {[%emt 0:00:04]} 61. Ra2 {[%emt 0:00:15]} Re8 {[%emt 0:01:29]} 62. Ra7+ {[%emt 0:00:24]} Kg6 {[%emt 0:00:11]} 63. Ra6+ {[%emt 0:00:03]} Kh5 {[%emt 0:00:31]} 64. Ra5+ {[%emt 0:00:57]} Kh6 {[%emt 0:00:22]} 65. Re5 {[%emt 0:00:46]} Rb8 {[%emt 0:00:04]} 66. Re2 {[%emt 0:00:13]} Rd8 {[%emt 0:00:22]} 67. Rg2 {[%emt 0:00:43]} Rd3 {[%emt 0:01:23]} 68. Ke4 {[%emt 0:00:56]} Rd8 {[%emt 0:00:14]} 69. f4 {[%emt 0:00:52]} Rd1 {[%emt 0:00:44]} 70. Kf5 {[%emt 0:00:53]} Kh7 {[%emt 0:00:10]} 71. Kg5 {[%emt 0:00:36]} Rd6 {[%emt 0:00:18]} 72. Kf5 {[%emt 0:00:32]} Kg8 {[%emt 0:00:23]} 73. Ke5 {[%emt 0:00:09]} Rd1 {[%emt 0:00:14]} 74. Ke4 {[%emt 0:00:41]} Rd3 {[%emt 0:00:13]} 75. Rh2 {[%emt 0:00:17]} Kf7 {[%emt 0:00:07]} 76. Rg2 {[%emt 0:00:02]} Kf6 {[%emt 0:00:05]} 77. Rh2 {[%emt 0:00:34]} g6 {[%emt 0:00:23]} 78. Rh8 {[%emt 0:00:23]} Rd2 {[%emt 0:00:10]} 79. Rb8 {[%emt 0:00:01]} Ke6 {[%emt 0:00:06]} 80. Rb6+ {[%emt 0:00:08]} Kf7 {[%emt 0:00:03]} 81. Ke3 {[%emt 0:00:11]} Rd3+ {[%emt 0:00:05]} 82. Ke4 {[%emt 0:00:21]} Rd2 {[%emt 0:00:06]} 83. Ke5 {[%emt 0:00:02]} Re2+ {[%emt 0:00:39]} 84. Kd4 {[%emt 0:00:37]} Rf2 {[%emt 0:00:03]} 85. Ke3 {[%emt 0:01:19]} Rh2 {[%emt 0:01:09]} 86. Kf3 {[%emt 0:01:18]} Rd2 {[%emt 0:00:07]} 87. Ke3 {[%emt 0:00:01]} Rd3+ {[%emt 0:00:19]} 88. Ke4 {[%emt 0:00:01]} Rd2 {[%emt 0:00:23]} 89. Ke5 {[%emt 0:00:13]} Re2+ {[%emt 0:00:10]} 90. Kd4 {[%emt 0:00:01]} Rf2 {[%emt 0:00:09]} 91. Kxc4 {[%emt 0:00:29]} Rxf4+ {[%emt 0:00:02]} 92. Kb5 {[%emt 0:00:58]} g5 {[%emt 0:00:09]} 93. Rd6 {[%emt 0:01:26]} Rf5+ {[%emt 0:00:29]} 94. Kb4 {[%emt 0:00:29]} g4 {[%emt 0:00:03]} 95. Rd2 {[%emt 0:00:19]} g3 {[%emt 0:00:07]} 96. Rg2 {[%emt 0:00:05]} Rg5 {[%emt 0:00:11]} 97. c4 {[%emt 0:00:24]} Ke6 {[%emt 0:00:04]} 1/2-1/2